fUSD/lending_fUSD_20240214
["ID","MTS","AMOUNT","RATE_DAILY","PERIOD"]
[313988441,1707917350808,-489.67573697,0.00030793,4]
[313988442,1707917350830,-1560.18232144,0.00030795,4]
[313988443,1707917350857,-174.40047935,0.00030795,4]
[313988444,1707917350882,-190.48065049,0.00030795,4]
[313988445,1707917350903,-262.208618,0.00030795,4]
[313988446,1707917350925,-157.26089428,0.00031543,2]
[313988447,1707917350946,-155.23,0.00032877,2]
[313988448,1707917350967,-154.43,0.0003294,2]
[313988449,1707917350988,-155.76,0.000335,2]
[313988450,1707917351008,-155.76,0.000335,2]
[313988454,1707917400641,500.0,0.000335,2]
[313988457,1707917411979,176.0118,0.0002828,2]
[313988458,1707917416675,500.0,0.000335,2]
[313988461,1707917432126,-155.0,0.00034533,2]
[313988462,1707917432136,-506.68277074,0.00034534,2]
[313988463,1707917432185,-145.82722926,0.00034534,2]
[313988464,1707917432194,-250.0,0.00034645,111]
[313988465,1707917432203,-1341.67339011,0.00034765,2]
[313988466,1707917432215,-509.14459552,0.00034765,2]
[313988467,1707917432227,-4342.40201437,0.00034765,2]
[313988468,1707917432236,-250.0,0.00034794,2]
[313988469,1707917432246,-155.76,0.000349,2]
[313988470,1707917432255,-155.76,0.000349,2]
[313988471,1707917432265,-155.23,0.00034932,2]
[313988472,1707917432274,-334.64,0.00034954,2]
[313988473,1707917432286,-287.43,0.00034998,2]
[313988474,1707917432296,-191.46,0.00034999,2]
[313988475,1707917432305,-228.65418055,0.00035,7]
[313988476,1707917432315,-1297.56673895,0.00035,2]
[313988477,1707917432324,-347.49,0.00035041,2]
[313988478,1707917432334,-310.88213319,0.0003509,10]
[313988479,1707917432354,-189.11786681,0.0003509,10]
[313988480,1707917432364,-154.43,0.00035204,2]
[313988481,1707917432375,-169.84,0.00035305,2]
[313988482,1707917432384,-566.14626029,0.00035573,4]
[313988483,1707917432397,-358.49149568,0.00035573,4]
[313988484,1707917432408,-2224.53765689,0.00035573,4]
[313988485,1707917432421,-1127.76831689,0.00035573,4]
[313988486,1707917432437,-1044.78790986,0.00035573,4]
[313988487,1707917432492,-150.0,0.000344,2]
[313988488,1707917432501,-2228.59324902,0.00035573,4]
[313988489,1707917432514,-940.9021208,0.00035573,4]
[313988490,1707917432530,-992.83716785,0.00035573,4]
[313988491,1707917432607,-385.28554341,0.00035573,4]
[313988492,1707917432618,-2033.90701722,0.00035573,4]
[313988493,1707917432635,-283.25614464,0.00035573,4]
[313988494,1707917432655,-1025.00615077,0.00035573,4]
[313988495,1707917432667,-499.13548228,0.00035573,4]
[313988496,1707917434698,500.0,0.0003,2]
[313988506,1707917438991,-1921.68,0.00035573,4]
[313988508,1707917439101,-5166.2118,0.00035573,4]
[313988509,1707917439157,-537.3500811,0.00035573,4]
[313988516,1707917439400,-6434.39900771,0.00035573,4]
[313988518,1707917439413,-30410.05743131,0.00035573,4]
[313988520,1707917439422,-331.45,0.00035574,2]
[313988522,1707917439431,-1000.0,0.00035766,10]
[313988523,1707917439441,-155.03476278,0.00035771,20]
[313988525,1707917439451,-2000.0,0.000359,2]
[313988527,1707917439461,-186.72638186,0.00036,14]
[313988529,1707917439471,-317.41,0.00036,5]
[313988530,1707917439480,-10000.0,0.00036,7]
[313988532,1707917439489,-258.62,0.0003604,30]
[313988534,1707917439498,-1000.0,0.00036164,5]
[313988535,1707917439507,-434.78718254,0.00036177,30]
[313988536,1707917439516,-500.0,0.00036186,10]
[313988537,1707917439526,-155.76,0.000363,3]
[313988538,1707917439535,-155.76,0.000363,3]
[313988539,1707917439544,-815.61995863,0.00036434,2]
[313988540,1707917439554,-258.56722643,0.00036435,4]
[313988541,1707917439564,-775.0,0.00036436,30]
[313988542,1707917439573,-31099.66799213,0.00036437,4]
[313988543,1707917439583,-1000.0,0.00036438,6]
[313988544,1707917439592,-421.01,0.00036493,2]
[313988545,1707917439601,-10081.16111578,0.000365,7]
[313988546,1707917439610,-300.0,0.000365,13]
[313988547,1707917439620,-342.2,0.00036521,2]
[313988548,1707917439630,-802.84348302,0.00036562,2]
[313988549,1707917439639,-150.0,0.00036563,2]
[313988550,1707917439649,-700.0,0.000366,13]
[313988551,1707917439658,-1074.06441474,0.00036612,8]
[313988552,1707917439668,-3088.6273707,0.00036612,2]
[313988553,1707917439677,-8316.5312,0.00036612,2]
[313988554,1707917439688,-210.0,0.00036612,2]
[313988555,1707917439697,-1206.35041636,0.00036625,2]
[313988556,1707917439707,-287.43,0.00036642,2]
[313988557,1707917439718,-2694.36171558,0.00036651,10]
[313988558,1707917439728,-323.98637692,0.00036659,4]
[313988559,1707917439737,-1500.0,0.0003666,2]
[313988560,1707917439746,-23092.80481647,0.00036661,3]
[313988561,1707917439772,-1758.14339674,0.00036661,3]
[313988562,1707917439784,-782.52983112,0.00036661,3]
[313988563,1707917439813,-592.4481492,0.00036661,3]
[313988567,1707917441401,-2319.85512791,0.00036661,3]
[313988568,1707917441414,-534.941,0.00036661,3]
[313988569,1707917441429,-550.74,0.00036661,3]
[313988570,1707917441504,-10694.44447293,0.00036661,3]
[313988571,1707917441516,-2544.50187376,0.00036661,3]
[313988572,1707917441560,-1490.014062,0.00036661,3]
[313988677,1707917443387,-11194.57726987,0.00036661,3]
[313988678,1707917443397,-1347.18085779,0.00036662,10]
[313988679,1707917443406,-151.86760742,0.00036672,2]
[313988680,1707917443415,-5000.0,0.00036672,3]
[313988681,1707917443424,-1600.87481531,0.00036673,9]
[313988682,1707917443434,-1100.0,0.000367,13]
[313988683,1707917443445,-28290.7980136,0.00036702,10]
[313988685,1707917443454,-301.23978125,0.00036709,2]
[313988687,1707917443463,-522.76817896,0.00036711,4]
[313988688,1707917443473,-491.54449466,0.00036712,2]
[313988689,1707917443482,-1018.82,0.00036712,2]
[313988690,1707917443492,-511.22785684,0.00036712,2]
[313988691,1707917443501,-500.0,0.00036712,2]
[313988692,1707917443510,-717.94,0.00036712,2]
[313988693,1707917443519,-500.0,0.00036712,2]
[313988694,1707917443529,-1185.56,0.00036712,2]
[313988695,1707917443538,-1064.31,0.00036712,2]
[313988696,1707917443547,-1016.8,0.00036712,2]
[313988697,1707917443556,-1415.71,0.00036712,2]
[313988698,1707917443566,-785.34,0.00036712,2]
[313988699,1707917443575,-500.0,0.00036712,2]
[313988700,1707917443584,-682.13,0.00036712,2]
[313988701,1707917443593,-397.38715518,0.00036712,2]
[313988702,1707917443602,-527.5922004,0.00036712,2]
[313988703,1707917443611,-938.65,0.00036712,2]
[313988705,1707917443620,-825.23,0.00036712,2]
[313988706,1707917443630,-500.0,0.00036712,2]
[313988707,1707917443639,-915.67,0.00036712,2]
[313988708,1707917443648,-1153.53,0.00036712,2]
[313988709,1707917443658,-1457.97,0.00036712,2]
[313988710,1707917443667,-1117.07,0.00036712,2]
[313988711,1707917443677,-1066.83,0.00036712,2]
[313988712,1707917443686,-341.34560379,0.00036712,2]
[313988713,1707917443695,-500.0,0.00036712,2]
[313988714,1707917443705,-512.17351367,0.00036712,2]
[313988715,1707917443714,-880.54,0.00036712,2]
[313988716,1707917443723,-911.21,0.00036712,2]
[313988717,1707917443733,-734.25,0.00036712,2]
[313988718,1707917443743,-500.0,0.00036712,2]
[313988719,1707917443753,-500.0,0.00036712,2]
[313988720,1707917443762,-500.0,0.00036712,2]
[313988721,1707917443772,-1354.56,0.00036712,2]
[313988722,1707917443781,-2544.17,0.00036712,2]
[313988723,1707917443791,-1081.25,0.00036712,2]
[313988724,1707917443801,-532.16194436,0.00036712,2]
[313988725,1707917443810,-687.92,0.00036712,2]
[313988726,1707917443820,-900.69,0.00036712,2]
[313988727,1707917443829,-1599.85,0.00036712,2]
[313988728,1707917443838,-1336.89,0.00036712,2]
[313988729,1707917443848,-500.0,0.00036712,2]
[313988730,1707917443857,-1357.48,0.00036712,2]
[313988731,1707917443866,-500.0,0.00036712,2]
[313988732,1707917443875,-501.36368141,0.00036712,2]
[313988733,1707917443884,-812.63,0.00036712,2]
[313988734,1707917443894,-500.0,0.00036712,2]
[313988735,1707917443903,-1377.14,0.00036712,2]
[313988736,1707917443912,-1677.86,0.00036712,2]
[313988737,1707917443921,-500.0,0.00036712,2]
[313988738,1707917443930,-515.93204194,0.00036712,2]
[313988739,1707917443939,-831.17,0.00036712,2]
[313988740,1707917443961,-279.49262281,0.00036712,2]
[313988741,1707917443979,-1527.42,0.00036712,2]
[313988742,1707917443998,-1362.55,0.00036712,2]
[313988743,1707917444017,-1097.47,0.00036712,2]
[313988744,1707917444033,-958.14,0.00036712,2]
[313988745,1707917444050,-500.0,0.00036712,2]
[313988746,1707917444068,-500.0,0.00036712,2]
[313988747,1707917444084,-500.0,0.00036712,2]
[313988748,1707917444102,-702.85,0.00036712,2]
[313988749,1707917444119,-539.70040536,0.00036712,2]
[313988750,1707917444138,-1039.73,0.00036712,2]
[313988751,1707917444160,-1147.6,0.00036712,2]
[313988752,1707917444172,-985.3,0.00036712,2]
[313988753,1707917444186,-500.0,0.00036712,2]
[313988754,1707917444205,-500.0,0.00036712,7]
[313988755,1707917444219,-500.0,0.00036712,2]
[313988756,1707917444234,-1456.5,0.00036712,2]
[313988757,1707917444252,-1368.69,0.00036712,2]
[313988758,1707917444267,-500.0,0.00036712,2]
[313988759,1707917444283,-500.0,0.00036712,2]
[313988760,1707917444300,-847.46,0.00036712,2]
[313988761,1707917444315,-500.0,0.00036712,2]
[313988762,1707917444329,-773.2,0.00036712,2]
[313988763,1707917444344,-1131.26,0.00036712,2]
[313988764,1707917444359,-510.05,0.00036712,2]
[313988765,1707917444374,-500.0,0.00036712,2]
[313988766,1707917444389,-500.0,0.00036712,2]
[313988767,1707917444403,-522.92,0.00036712,2]
[313988768,1707917444418,-789.98,0.00036712,2]
[313988769,1707917444432,-500.0,0.00036712,2]
[313988770,1707917444449,-1453.33,0.00036712,2]
[313988771,1707917444463,-862.04,0.00036712,2]
[313988772,1707917444478,-644.59,0.00036712,2]
[313988773,1707917444493,-1956.56,0.00036712,2]
[313988774,1707917444507,-500.0,0.00036712,2]
[313988775,1707917444521,-500.0,0.00036712,2]
[313988776,1707917444535,-1179.15,0.00036712,2]
[313988777,1707917444549,-1171.29,0.00036712,2]
[313988778,1707917444564,-510.3346675,0.00036712,2]
[313988779,1707917444579,-500.0,0.00036712,2]
[313988780,1707917444593,-1542.57,0.00036712,2]
[313988781,1707917444608,-1191.13,0.00036712,2]
[313988782,1707917444623,-502.86991938,0.00036712,2]
[313988783,1707917444637,-500.0,0.00036712,2]
[313988784,1707917444651,-500.0,0.00036712,2]
[313988785,1707917444665,-1415.26,0.00036712,2]
[313988786,1707917444680,-500.0,0.00036712,2]
[313988787,1707917444695,-752.78,0.00036712,2]
[313988788,1707917444709,-760.9,0.00036712,2]
[313988789,1707917444724,-1819.26,0.00036712,2]
[313988790,1707917444738,-1093.93,0.00036712,2]
[313988791,1707917444753,-500.0,0.00036712,2]
[313988792,1707917444767,-1759.74,0.00036712,2]
[313988793,1707917444782,-500.0,0.00036712,2]
[313988794,1707917444796,-520.59,0.00036712,2]
[313988795,1707917444811,-500.0,0.00036712,2]
[313988796,1707917444825,-1373.84,0.00036712,2]
[313988797,1707917444840,-1037.16,0.00036712,2]
[313988798,1707917444856,-1901.38,0.00036712,2]
[313988799,1707917444871,-500.0,0.00036712,2]
[313988800,1707917444885,-500.0,0.00036712,2]
[313988801,1707917444900,-858.98,0.00036712,2]
[313988802,1707917444915,-2095.78,0.00036712,2]
[313988803,1707917444929,-2260.18,0.00036712,2]
[313988804,1707917444945,-318.05159909,0.00036712,2]
[313988805,1707917444959,-1091.74,0.00036712,2]
[313988806,1707917444974,-1707.45,0.00036712,2]
[313988807,1707917444989,-500.0,0.00036712,2]
[313988808,1707917445005,-511.14,0.00036712,2]
[313988809,1707917445020,-500.0,0.00036712,2]
[313988810,1707917445035,-1242.76,0.00036712,2]
[313988811,1707917445050,-500.0,0.00036712,2]
[313988812,1707917445067,-508.45040547,0.00036712,2]
[313988813,1707917445082,-1118.3,0.00036712,2]
[313988814,1707917445096,-500.0,0.00036712,2]
[313988815,1707917445111,-790.17,0.00036712,2]
[313988816,1707917445125,-551.1,0.00036712,2]
[313988817,1707917445139,-277.89672637,0.00036712,2]
[313988818,1707917445154,-500.0,0.00036712,2]
[313988819,1707917445169,-500.0,0.00036712,2]
[313988820,1707917445184,-1259.55,0.00036712,2]
[313988821,1707917445199,-502.86564645,0.00036712,2]
[313988822,1707917445213,-324.86065597,0.00036712,2]
[313988823,1707917445227,-500.0,0.00036712,2]
[313988824,1707917445242,-500.0,0.00036712,2]
[313988825,1707917445257,-500.7407954,0.00036712,2]
[313988826,1707917445271,-546.85,0.00036712,2]
[313988827,1707917445286,-536.87,0.00036712,2]
[313988828,1707917445303,-500.0,0.00036712,2]
[313988829,1707917445317,-637.14387023,0.00036712,2]
[313988830,1707917445333,-649.32,0.00036712,2]
[313988831,1707917445348,-916.62,0.00036712,2]
[313988832,1707917445365,-506.83357885,0.00036712,2]
[313988833,1707917445599,-810.43,0.00036712,2]
[313988834,1707917445609,-500.0,0.00036712,2]
[313988835,1707917445619,-500.0,0.00036712,2]
[313988836,1707917445628,-603.82,0.00036712,2]
[313988837,1707917445637,-500.0,0.00036712,2]
[313988838,1707917445647,-500.0,0.00036712,2]
[313988839,1707917445657,-572.57510851,0.00036712,2]
[313988840,1707917445666,-515.24072974,0.00036712,2]
[313988841,1707917445676,-8896.12,0.00036712,2]
[313988842,1707917445685,-500.0,0.00036712,2]
[313988843,1707917445695,-500.0,0.00036712,2]
[313988844,1707917445705,-260.39,0.00036712,2]
[313988845,1707917445714,-860.61,0.00036712,2]
[313988846,1707917445722,-500.0,0.00036712,2]
[313988847,1707917445731,-500.0,0.00036712,2]
[313988848,1707917445741,-1000.0,0.00036712,7]
[313988849,1707917445750,-5523.76,0.00036712,2]
[313988850,1707917445759,-1258.41,0.00036712,2]
[313988851,1707917445769,-500.0,0.00036712,2]
[313988852,1707917445779,-500.0,0.00036712,2]
[313988853,1707917445789,-500.0,0.00036712,2]
[313988854,1707917445798,-8.41696584,0.00036712,2]
[313988855,1707917445849,-727.31303416,0.00036712,2]
[313988856,1707917445858,-1567.06,0.00036712,2]
[313988857,1707917445867,-275.13002957,0.00036712,2]
[313988858,1707917445879,-224.86997043,0.00036712,2]
[313988859,1707917445888,-1551.59,0.00036712,2]
[313988860,1707917445897,-500.0,0.00036712,2]
[313988861,1707917445907,-1117.35,0.00036712,2]
[313988863,1707917445916,-517.01066844,0.00036712,2]
[313988864,1707917445926,-500.0,0.00036712,2]
[313988865,1707917445935,-500.0,0.00036712,2]
[313988866,1707917445944,-70.28436991,0.00036712,2]
[313988953,1707917447523,-179.85742008,0.0003666,7]
[313988954,1707917447533,-155.0,0.00036711,2]
[313988955,1707917447750,-427.34707273,0.00036712,2]
[313988956,1707917447761,-1106.7,0.00036712,2]
[313988957,1707917447772,-3116.18,0.00036712,2]
[313988958,1707917447783,-500.0,0.00036712,2]
[313988959,1707917447792,-500.0,0.00036712,2]
[313988960,1707917447802,-634.59,0.00036712,2]
[313988961,1707917447812,-810.06,0.00036712,2]
[313988962,1707917447822,-603.06,0.00036712,2]
[313988963,1707917447831,-500.0,0.00036712,2]
[313988964,1707917447842,-708.48,0.00036712,2]
[313988965,1707917447852,-10407.82,0.00036712,2]
[313988966,1707917447862,-500.0,0.00036712,2]
[313988967,1707917447872,-500.0,0.00036712,2]
[313988968,1707917447882,-500.0,0.00036712,2]
[313988969,1707917447893,-11409.74,0.00036712,2]
[313988970,1707917447903,-1198.04,0.00036712,2]
[313988971,1707917447914,-500.0,0.00036712,2]
[313988972,1707917447924,-500.0,0.00036712,2]
[313988973,1707917447935,-500.0,0.00036712,2]
[313988974,1707917447945,-6799.56,0.00036712,2]
[313988975,1707917447955,-1595.18,0.00036712,2]
[313988976,1707917447964,-809.23,0.00036712,2]
[313988977,1707917447973,-2902.41,0.00036712,2]
[313988978,1707917447982,-426.4007873,0.00036712,2]
[313988979,1707917447992,-500.0,0.00036712,2]
[313988980,1707917448001,-500.0,0.00036712,2]
[313988981,1707917448010,-500.0,0.00036712,2]
[313988982,1707917448019,-1153.8,0.00036712,2]
[313988983,1707917448029,-521.41156418,0.00036712,2]
[313988984,1707917448038,-4432.31082198,0.00036712,2]
[313988985,1707917448057,-449.53917802,0.00036712,2]
[313988986,1707917448066,-995.66453894,0.00036712,2]
[313988987,1707917448079,-198.17546106,0.00036712,2]
[313988988,1707917448088,-500.0,0.00036712,2]
[313988989,1707917448098,-500.0,0.00036712,2]
[313988990,1707917448108,-478.07027894,0.00036712,2]
[313988991,1707917448120,-232.79972106,0.00036712,2]
[313988992,1707917448129,-500.0,0.00036712,2]
[313988993,1707917448139,-1405.21,0.00036712,2]
[313988994,1707917448148,-500.0,0.00036712,2]
[313988995,1707917448157,-756.72,0.00036712,2]
[313988996,1707917448166,-500.0,0.00036712,2]
[313988997,1707917448176,-4968.1,0.00036712,2]
[313988998,1707917448185,-500.0,0.00036712,2]
[313988999,1707917448194,-3342.37,0.00036712,2]
[313989000,1707917448204,-2767.14,0.00036712,2]
[313989001,1707917448213,-500.0,0.00036712,2]
[313989002,1707917448222,-500.0,0.00036712,2]
[313989003,1707917448231,-740.59,0.00036712,2]
[313989004,1707917448241,-4429.28,0.00036712,2]
[313989005,1707917448250,-1412.79,0.00036712,2]
[313989006,1707917448260,-823.3,0.00036712,2]
[313989007,1707917448269,-20633.4,0.00036712,2]
[313989008,1707917448279,-500.0,0.00036712,2]
[313989009,1707917448289,-4432.26,0.00036712,2]
[313989010,1707917448300,-1060.23,0.00036712,2]
[313989011,1707917448309,-517.79928519,0.00036712,2]
[313989012,1707917448318,-500.0,0.00036712,2]
[313989013,1707917448329,-1773.3,0.00036712,2]
[313989014,1707917448339,-500.0,0.00036712,2]
[313989015,1707917448348,-500.0,0.00036712,2]
[313989016,1707917448358,-1156.98,0.00036712,2]
[313989017,1707917448368,-2010.23,0.00036712,2]
[313989018,1707917448378,-1169.8,0.00036712,2]
[313989019,1707917448388,-1123.25,0.00036712,2]
[313989020,1707917448398,-500.0,0.00036712,2]
[313989021,1707917448407,-500.0,0.00036712,2]
[313989022,1707917448417,-2605.49,0.00036712,2]
[313989023,1707917448426,-1262.83,0.00036712,2]
[313989024,1707917448435,-765.64,0.00036712,2]
[313989025,1707917448445,-500.0,0.00036712,2]
[313989026,1707917448455,-6028.73,0.00036712,2]
[313989027,1707917448465,-3471.84,0.00036712,2]
[313989028,1707917448474,-1484.06,0.00036712,2]
[313989029,1707917448484,-500.0,0.00036712,2]
[313989030,1707917448493,-1514.65,0.00036712,2]
[313989031,1707917448502,-500.0,0.00036712,2]
[313989032,1707917448511,-593.31,0.00036712,2]
[313989033,1707917448521,-897.52,0.00036712,2]
[313989034,1707917448530,-1134.33,0.00036712,2]
[313989035,1707917448539,-500.0,0.00036712,2]
[313989036,1707917448549,-3969.7,0.00036712,2]
[313989037,1707917448558,-847.75,0.00036712,2]
[313989038,1707917448567,-1017.74,0.00036712,2]
[313989039,1707917448576,-10203.81841205,0.00036712,2]
[313989040,1707917448623,-1680.32120753,0.00036712,2]
[313989041,1707917448728,-534.19038042,0.00036712,2]
[313989042,1707917448739,-70.4707495,0.00036712,2]
[313989043,1707917448776,-429.5292505,0.00036712,2]
[313989044,1707917448786,-500.0,0.00036712,2]
[313989045,1707917448796,-2184.10702968,0.00036712,2]
[313989046,1707917454638,500.0,0.0003,2]
[313989047,1707917470691,500.0,0.0003,2]
[313989048,1707917471645,276.2,0.00025154,2]
[313989049,1707917491946,1733.0874523,0.00030872,4]
[313989050,1707917496639,500.0,0.0003,2]
[313989051,1707917514641,500.0,0.0003,2]
[313989052,1707917529927,8830.91621085,0.0002848,7]
[313989053,1707917533157,500.0,0.0003,2]
[313989054,1707918369757,158.0,0.00023005,2]
[313989062,1707918565238,-217.35535375,0.00024643,2]
[313989063,1707918565259,-364.58258095,0.00024643,2]
[313989064,1707918565279,-6681.69163431,0.00024644,2]
[313989065,1707918566094,-754.85570817,0.00024644,2]
[313989066,1707918566113,-3047.06990534,0.00024644,2]
[313989067,1707918566134,-1506.99256787,0.00024645,2]
[313989068,1707918566156,-158.0,0.00024649,2]
[313989069,1707918566176,-157.82753203,0.000249,2]
[313989070,1707918566195,-228.74225568,0.00025,2]
[313989071,1707918566214,-235.11,0.00025,2]
[313989072,1707918566234,-12530.29914456,0.00025136,2]
[313989093,1707918632321,-1066.97447528,0.00024639,2]
[313989094,1707918632331,-2851.54471126,0.00024639,2]
[313989095,1707918632382,-1554.19236,0.00024639,2]
[313989096,1707918632394,-11071.98718966,0.00024639,2]
[313989097,1707918632446,-351.00120743,0.00024639,2]
[313989098,1707918632500,-1669.0948899,0.00024639,2]
[313989099,1707918632558,-13808.82629928,0.00024639,2]
[313989105,1707918638372,-7064.36337742,0.00024639,2]
[313989106,1707918638385,-370.75978435,0.00024639,2]
[313989107,1707918638398,-4561.03564843,0.00024639,2]
[313989108,1707918638408,-19252.21979484,0.0002464,2]
[313989109,1707918638418,-336.19358796,0.00024641,2]
[313989110,1707918638427,-199.94608041,0.00024641,2]
[313989111,1707918638437,-3046.032449,0.00024641,2]
[313989112,1707918638446,-2000.0,0.00025154,2]
[313989113,1707918638455,-250.0,0.00025154,2]
[313989114,1707918638467,-284.05,0.00025154,2]
[313989115,1707918638476,-1646.75,0.00025154,2]
[313989116,1707918638485,-233.11,0.00025379,2]
[313989117,1707918638495,-158.0,0.00026293,2]
[313989118,1707918638504,-499.99,0.00026293,2]
[313989119,1707918638513,-302.29,0.00026293,2]
[313989120,1707918638523,-2840.0,0.000265,2]
[313989121,1707918638532,-817.07,0.000265,2]
[313989122,1707918638541,-14757.0,0.000265,2]
[313989123,1707918638551,-157.827532,0.00027222,2]
[313989124,1707918638561,-477.99,0.00027384,2]
[313989125,1707918638570,-161.86,0.0002744,2]
[313989126,1707918638579,-233.11,0.00027643,2]
[313989127,1707918638588,-250.0,0.00027768,2]
[313989128,1707918638598,-230.16,0.00027892,2]
[313989129,1707918638608,-31441.0,0.00027913,2]
[313989130,1707918638617,-158.0,0.00027937,2]
[313989131,1707918638626,-969.27668517,0.00028,2]
[313989132,1707918638639,-156.06,0.00028133,2]
[313989133,1707918638648,-253.02146915,0.0002819,2]
[313989134,1707918638658,-231.67,0.00028256,2]
[313989135,1707918638667,-1187.9003,0.00028377,2]
[313989136,1707918638676,-939.80636288,0.00028377,4]
[313989137,1707918638685,-555.28772376,0.0002838,2]
[313989138,1707918638695,-156.5269576,0.0002838,2]
[313989139,1707918638706,-500.0,0.0002842,2]
[313989140,1707918638716,-210.38738255,0.00028467,2]
[313989141,1707918638726,-157.00235158,0.00028475,2]
[313989142,1707918638736,-949.04937961,0.00028475,2]
[313989143,1707918638745,-155.0,0.00028475,2]
[313989144,1707918638755,-296.80662458,0.00028475,2]
[313989145,1707918638764,-977.974241,0.00028475,2]
[313989146,1707918638774,-7289.44031668,0.00028475,2]
[313989147,1707918638783,-239.91376314,0.00028475,2]
[313989148,1707918638793,-266.43779097,0.00028475,2]
[313989149,1707918638803,-221.72347745,0.00028475,2]
[313989150,1707918638813,-180.26483187,0.00028475,2]
[313989152,1707918638823,-247.7810344,0.00028475,2]
[313989154,1707918638832,-247.14084515,0.00028475,2]
[313989156,1707918638841,-386.69622014,0.00028475,2]
[313989158,1707918638851,-5721.03220282,0.00028475,2]
[313989160,1707918638861,-473.51984593,0.00028476,2]
[313989161,1707918638871,-157.35004335,0.00028476,2]
[313989162,1707918638879,-150.2124735,0.00028477,3]
[313989164,1707918638888,-47478.62470849,0.00028477,2]
[313989167,1707918638914,-4895.54809626,0.00028477,2]
[313989169,1707918638926,-3613.84489398,0.00028477,2]
[313989172,1707918638950,-2483.8545,0.00028477,2]
[313989173,1707918638961,-390.66043688,0.00028477,2]
[313989174,1707918639007,-659.1292335,0.00028477,2]
[313989175,1707918639038,-6955.91214329,0.00028477,2]
[313989176,1707918639049,-3425.61803651,0.00028477,2]
[313989177,1707918639061,-1004.01266038,0.00028477,2]
[313989178,1707918639072,-37108.7030785,0.00028477,2]
[313989179,1707918639083,-250.0,0.00028477,2]
[313989186,1707918641154,-1004.66171192,0.00024638,2]
[313989187,1707918641163,-2463.79985717,0.00028477,2]
[313989188,1707918641177,-25875.0,0.00028477,2]
[313989189,1707918641189,-33483.75,0.00028477,2]
[313989190,1707918641205,-618.6167141,0.00028477,2]
[313989191,1707918641222,-270.17983787,0.00028477,2]
[313989192,1707918641233,-403.54720378,0.00028477,2]
[313989193,1707918641249,-471.38499996,0.00028477,2]
[313989194,1707918641261,-2358.35777256,0.00028477,2]
[313989195,1707918641274,-1075.46002,0.00028477,2]
[313989196,1707918641305,-518.52498,0.00028477,2]
[313989197,1707918641317,-281.36914269,0.00028477,2]
[313989198,1707918641345,-393.13856182,0.00028477,2]
[313989199,1707918641357,-7259.7,0.00028477,2]
[313989200,1707918641368,-2954.388038,0.00028477,2]
[313989201,1707918641380,-4576.20486949,0.00028477,2]
[313989202,1707918641389,-33677.93162242,0.00028477,2]
[313989203,1707918641405,-644.77640894,0.00028477,2]
[313989309,1707918643312,-8339.91810132,0.00028477,2]
[313989312,1707918643325,-5057.77901163,0.00028477,2]
[313989318,1707918643376,-438.34307677,0.00028477,2]
[313989319,1707918643388,-2459.53667299,0.00028477,2]
[313989320,1707918643400,-7087.894266,0.00028477,2]
[313989321,1707918643445,-427458.94576688,0.00028477,2]
[313989322,1707918643454,-20949.16478791,0.0002848,7]
[313989323,1707918643464,-19237.00763479,0.0002848,7]
[313989324,1707918643476,-100136.7127579,0.0002848,7]
[313989325,1707918643486,-28459.67280812,0.0002848,7]
[313989326,1707918643496,-156.06,0.000285,2]
[313989327,1707918643505,-156.06,0.00028866,2]
[313989328,1707918643515,-156.06,0.00029233,2]
[313989329,1707918643524,-326.22,0.00029352,2]